fUST/lending_fUST_20250715
["ID","MTS","AMOUNT","RATE_DAILY","PERIOD"]
[372128263,1752532240347,-460.0,0.00022191,3]
[372128265,1752532240356,-461.24071732,0.00022191,3]
[372128267,1752532240366,-460.0,0.00022191,3]
[372128269,1752532240375,-460.0,0.00022191,3]
[372128271,1752532240384,-4225.54,0.00022191,3]
[372128273,1752532240393,-460.0,0.00022191,3]
[372128275,1752532240402,-460.0,0.00022191,3]
[372128277,1752532240411,-460.0,0.00022191,3]
[372128279,1752532240420,-460.0,0.00022191,3]
[372128281,1752532240430,-460.0,0.00022191,3]
[372128283,1752532240439,-460.0,0.00022191,3]
[372128285,1752532240449,-460.0,0.00022191,3]
[372128287,1752532240458,-460.0,0.00022191,3]
[372128289,1752532240467,-460.0,0.00022191,3]
[372128291,1752532240476,-460.0,0.00022191,3]
[372128293,1752532240485,-460.0,0.00022191,3]
[372128295,1752532240495,-460.0,0.00022191,3]
[372128297,1752532240504,-460.0,0.00022191,3]
[372128299,1752532240514,-460.0,0.00022191,3]
[372128301,1752532240527,-460.0,0.00022191,3]
[372128303,1752532240536,-2685.53,0.00022191,3]
[372128305,1752532240546,-460.0,0.00022191,3]
[372128307,1752532240555,-460.0,0.00022191,3]
[372128309,1752532240564,-460.0,0.00022191,3]
[372128311,1752532240574,-460.0,0.00022191,3]
[372128313,1752532240583,-857.87,0.00022191,3]
[372128315,1752532240593,-460.0,0.00022191,3]
[372128317,1752532240603,-460.0,0.00022191,3]
[372128319,1752532240613,-460.0,0.00022191,3]
[372128321,1752532240623,-252.99633849,0.00022191,3]
[372128323,1752532240634,-460.0,0.00022191,3]
[372128325,1752532240644,-527.02,0.00022191,3]
[372128327,1752532240654,-460.0,0.00022191,3]
[372128329,1752532240666,-460.0,0.00022191,3]
[372128331,1752532240676,-469.39,0.00022191,3]
[372128333,1752532240686,-460.0,0.00022191,3]
[372128335,1752532240695,-460.0,0.00022191,3]
[372128337,1752532240705,-460.0,0.00022191,3]
[372128339,1752532240714,-6892.34,0.00022191,3]
[372128341,1752532240723,-460.0,0.00022191,3]
[372128343,1752532240732,-460.0,0.00022191,3]
[372128345,1752532240742,-460.0,0.00022191,3]
[372128347,1752532240751,-460.0,0.00022191,3]
[372128349,1752532240761,-460.0,0.00022191,3]
[372128352,1752532240770,-460.0,0.00022191,3]
[372128354,1752532240779,-460.0,0.00022191,3]
[372128356,1752532240789,-460.0,0.00022191,3]
[372128358,1752532240798,-460.0,0.00022191,3]
[372128360,1752532240807,-460.0,0.00022191,3]
[372128361,1752532240816,-460.0,0.00022191,3]
[372128363,1752532240825,-1071.76,0.00022191,3]
[372128365,1752532240835,-460.0,0.00022191,3]
[372128367,1752532240844,-460.0,0.00022191,3]
[372128369,1752532240853,-460.0,0.00022191,3]
[372128371,1752532240862,-3108.77,0.00022191,3]
[372128373,1752532240871,-460.0,0.00022191,3]
[372128375,1752532240880,-460.0,0.00022191,3]
[372128378,1752532240890,-460.0,0.00022191,3]
[372128380,1752532240900,-460.0,0.00022191,3]
[372128382,1752532240909,-2811.79,0.00022191,3]
[372128383,1752532240918,-460.0,0.00022191,3]
[372128385,1752532240927,-4740.55,0.00022191,3]
[372128388,1752532240937,-460.0,0.00022191,3]
[372128390,1752532240946,-460.0,0.00022191,3]
[372128392,1752532240955,-460.0,0.00022191,3]
[372128393,1752532240964,-460.0,0.00022191,3]
[372128395,1752532240974,-460.0,0.00022191,3]
[372128397,1752532240983,-460.0,0.00022191,3]
[372128399,1752532240992,-460.0,0.00022191,3]
[372128401,1752532241001,-577.17,0.00022191,3]
[372128403,1752532241011,-460.0,0.00022191,3]
[372128405,1752532241020,-587.69,0.00022191,3]
[372128407,1752532241030,-460.0,0.00022191,3]
[372128410,1752532241039,-1277.88,0.00022191,3]
[372128411,1752532241048,-1083.81,0.00022191,3]
[372128414,1752532241057,-460.0,0.00022191,3]
[372128416,1752532241067,-460.0,0.00022191,3]
[372128418,1752532241076,-547.91,0.00022191,3]
[372128419,1752532241085,-561.49,0.00022191,3]
[372128421,1752532241094,-699.67,0.00022191,3]
[372128424,1752532241104,-460.0,0.00022191,3]
[372128425,1752532241113,-460.0,0.00022191,3]
[372128427,1752532241122,-780.27,0.00022191,3]
[372128429,1752532241131,-461.27021462,0.00022191,3]
[372128431,1752532241140,-460.0,0.00022191,3]
[372128433,1752532241150,-460.0,0.00022191,3]
[372128435,1752532241159,-460.0,0.00022191,3]
[372128437,1752532241168,-480.78,0.00022191,3]
[372128439,1752532241178,-460.0,0.00022191,3]
[372128441,1752532241187,-867.48,0.00022191,3]
[372128443,1752532241196,-460.0,0.00022191,3]
[372128445,1752532241205,-814.73,0.00022191,3]
[372128447,1752532241214,-460.0,0.00022191,3]
[372128449,1752532241223,-460.0,0.00022191,3]
[372128451,1752532241232,-460.0,0.00022191,3]
[372128453,1752532241241,-460.0,0.00022191,3]
[372128455,1752532241250,-460.0,0.00022191,3]
[372128457,1752532241259,-1633.31,0.00022191,3]
[372128459,1752532241269,-462.27,0.00022191,3]
[372128461,1752532241277,-4080.15,0.00022191,3]
[372128463,1752532241286,-460.0,0.00022191,3]
[372128465,1752532241295,-695.48,0.00022191,3]
[372128467,1752532241305,-460.0,0.00022191,3]
[372128469,1752532241313,-460.0,0.00022191,3]
[372128471,1752532241322,-2062.19,0.00022191,3]
[372128473,1752532241331,-694.43,0.00022191,3]
[372128475,1752532241340,-460.0,0.00022191,3]
[372128477,1752532241349,-460.0,0.00022191,3]
[372128479,1752532241358,-551.7,0.00022191,3]
[372128481,1752532241367,-3466.55,0.00022191,3]
[372128483,1752532241376,-840.62,0.00022191,3]
[372128485,1752532241386,-460.0,0.00022191,3]
[372128487,1752532241395,-460.0,0.00022191,3]
[372128489,1752532241404,-476.17,0.00022191,3]
[372128491,1752532241413,-2617.13,0.00022191,3]
[372128493,1752532241422,-460.0,0.00022191,3]
[372128495,1752532241431,-460.0,0.00022191,3]
[372128497,1752532241440,-460.0,0.00022191,3]
[372128499,1752532241450,-460.0,0.00022191,3]
[372128501,1752532241459,-499.24,0.00022191,3]
[372128503,1752532241469,-460.0,0.00022191,3]
[372128505,1752532241479,-2264.69,0.00022191,3]
[372128507,1752532241488,-460.0,0.00022191,3]
[372128509,1752532241497,-460.0,0.00022191,3]
[372128511,1752532241506,-460.0,0.00022191,3]
[372128513,1752532241516,-460.0,0.00022191,3]
[372128515,1752532241525,-460.0,0.00022191,3]
[372128517,1752532241536,-703.76,0.00022191,3]
[372128519,1752532241546,-801.47,0.00022191,3]
[372128521,1752532241555,-283.69647492,0.00022191,3]
[372128523,1752532241565,-460.0,0.00022191,3]
[372128525,1752532241574,-537.34,0.00022191,3]
[372128528,1752532241583,-460.0,0.00022191,3]
[372128529,1752532241592,-460.0,0.00022191,3]
[372128531,1752532241602,-460.0,0.00022191,3]
[372128533,1752532241611,-460.0,0.00022191,3]
[372128535,1752532241620,-5277.36,0.00022191,3]
[372128537,1752532241629,-460.0,0.00022191,3]
[372128539,1752532241639,-1054.77,0.00022191,3]
[372128541,1752532241649,-634.32,0.00022191,3]
[372128543,1752532241660,-593.07,0.00022191,3]
[372128546,1752532241672,-460.0,0.00022191,3]
[372128548,1752532241681,-579.96569069,0.00022191,3]
[372128550,1752532241691,-460.0,0.00022191,3]
[372128552,1752532241700,-979.14,0.00022191,3]
[372128554,1752532241710,-585.2,0.00022191,3]
[372128555,1752532241719,-460.0,0.00022191,3]
[372128557,1752532241728,-460.0,0.00022191,3]
[372128560,1752532241739,-460.0,0.00022191,3]
[372128562,1752532241749,-1418.9076181,0.00022314,7]
[372128564,1752532241759,-500.0,0.00022406,2]
[372128565,1752532241768,-500.0,0.00022406,2]
[372128567,1752532241777,-500.0,0.00022433,2]
[372128569,1752532241786,-1418.9076181,0.00022452,7]
[372128572,1752532241796,-505.92,0.0002246,2]
[372128574,1752532241806,-150000.0,0.00022465,2]
[372128575,1752532241815,-150000.0,0.00022465,2]
[372128577,1752532241825,-150000.0,0.00022465,2]
[372128579,1752532241835,-599.64,0.00022465,3]
[372128581,1752532241844,-460.0,0.00022465,3]
[372128584,1752532241854,-460.0,0.00022465,3]
[372128595,1752532241960,-460.0,0.00022465,3]
[372128598,1752532241970,-460.0,0.00022465,3]
[372128600,1752532241980,-460.0,0.00022465,3]
[372128601,1752532241990,-460.0,0.00022465,3]
[372128604,1752532241999,-460.0,0.00022465,3]
[372128606,1752532242009,-460.0,0.00022465,3]
[372128608,1752532242018,-589.14,0.00022465,3]
[372128609,1752532242028,-460.0,0.00022465,3]
[372128612,1752532242037,-460.0,0.00022465,3]
[372128614,1752532242047,-460.0,0.00022465,3]
[372128616,1752532242056,-460.0,0.00022465,3]
[372128618,1752532242066,-460.0,0.00022465,3]
[372128619,1752532242075,-460.0,0.00022465,3]
[372128621,1752532242084,-460.0,0.00022465,3]
[372128623,1752532242094,-460.0,0.00022465,3]
[372128625,1752532242104,-460.0,0.00022465,3]
[372128628,1752532242113,-460.0,0.00022465,3]
[372128630,1752532242123,-166.24,0.00022465,3]
[372128632,1752532242132,-460.0,0.00022465,3]
[372128633,1752532242142,-849.55,0.00022465,3]
[372128635,1752532242152,-460.0,0.00022465,3]
[372128637,1752532242162,-470.65,0.00022465,3]
[372128639,1752532242171,-460.0,0.00022465,3]
[372128642,1752532242181,-460.0,0.00022465,3]
[372128644,1752532242191,-460.0,0.00022465,3]
[372128645,1752532242200,-541.21173746,0.00022465,3]
[372128648,1752532242210,-4225.54,0.00022465,3]
[372128649,1752532242219,-565.22675693,0.00022465,3]
[372128651,1752532242228,-328.44699189,0.00022465,3]
[372128654,1752532242237,-460.0,0.00022465,3]
[372128656,1752532242247,-460.0,0.00022465,3]
[372128658,1752532242256,-460.0,0.00022465,3]
[372128659,1752532242267,-460.0,0.00022465,3]
[372128662,1752532242277,-276.76329084,0.00022465,3]
[372128664,1752532242287,-460.0,0.00022465,3]
[372128666,1752532242297,-460.0,0.00022465,3]
[372128668,1752532242306,-2685.53,0.00022465,3]
[372128669,1752532242316,-460.0,0.00022465,3]
[372128672,1752532242326,-460.0,0.00022465,3]
[372128674,1752532242335,-857.87,0.00022465,3]
[372128675,1752532242345,-460.0,0.00022465,3]
[372128679,1752532242355,-508.3402547,0.00022465,3]
[372128681,1752532242364,-460.0,0.00022465,3]
[372128683,1752532242373,-460.0,0.00022465,3]
[372128685,1752532242383,-527.02,0.00022465,3]
[372128687,1752532242393,-460.0,0.00022465,3]
[372128689,1752532242403,-460.0,0.00022465,3]
[372128691,1752532242412,-469.39,0.00022465,3]
[372128693,1752532242422,-460.0,0.00022465,3]
[372128695,1752532242432,-460.0,0.00022465,3]
[372128697,1752532242441,-6892.34,0.00022465,3]
[372128699,1752532242452,-460.0,0.00022465,3]
[372128701,1752532242461,-460.0,0.00022465,3]
[372128703,1752532242471,-460.0,0.00022465,3]
[372128705,1752532242480,-460.0,0.00022465,3]
[372128707,1752532242489,-460.0,0.00022465,3]
[372128709,1752532242499,-460.0,0.00022465,3]
[372128711,1752532242508,-269.39049778,0.00022465,3]
[372128713,1752532242517,-460.0,0.00022465,3]
[372128715,1752532242527,-1071.76,0.00022465,3]
[372128717,1752532242537,-460.0,0.00022465,3]
[372128719,1752532242546,-460.0,0.00022465,3]
[372128721,1752532242556,-460.0,0.00022465,3]
[372128723,1752532242566,-3108.77,0.00022465,3]
[372128726,1752532242575,-460.0,0.00022465,3]
[372128729,1752532242585,-460.0,0.00022465,3]
[372128732,1752532242595,-460.0,0.00022465,3]
[372128734,1752532242604,-460.0,0.00022465,3]
[372128736,1752532242614,-2811.79,0.00022465,3]
[372128738,1752532242623,-4740.55,0.00022465,3]
[372128740,1752532242633,-460.0,0.00022465,3]
[372128742,1752532242642,-460.0,0.00022465,3]
[372128744,1752532242653,-460.0,0.00022465,3]
[372128746,1752532242664,-460.0,0.00022465,3]
[372128748,1752532242674,-460.0,0.00022465,3]
[372128750,1752532242683,-460.0,0.00022465,3]
[372128752,1752532242692,-460.0,0.00022465,3]
[372128754,1752532242702,-488.41,0.00022465,3]
[372128756,1752532242712,-587.69,0.00022465,3]
[372128758,1752532242721,-460.0,0.00022465,3]
[372128760,1752532242730,-1277.88,0.00022465,3]
[372128762,1752532242740,-1083.81,0.00022465,3]
[372128764,1752532242750,-460.0,0.00022465,3]
[372128766,1752532242760,-547.91,0.00022465,3]
[372128768,1752532242769,-561.49,0.00022465,3]
[372128770,1752532242778,-699.67,0.00022465,3]
[372128772,1752532242787,-460.0,0.00022465,3]
[372128774,1752532242796,-460.0,0.00022465,3]
[372128776,1752532242806,-780.27,0.00022465,3]
[372128778,1752532242815,-460.0,0.00022465,3]
[372128780,1752532242824,-460.0,0.00022465,3]
[372128782,1752532242833,-480.78,0.00022465,3]
[372128784,1752532242843,-460.0,0.00022465,3]
[372128786,1752532242852,-867.48,0.00022465,3]
[372128788,1752532242861,-460.0,0.00022465,3]
[372128790,1752532242870,-814.73,0.00022465,3]
[372128792,1752532242879,-460.0,0.00022465,3]
[372128794,1752532242889,-460.0,0.00022465,3]
[372128796,1752532242899,-1633.31,0.00022465,3]
[372128798,1752532242908,-462.27,0.00022465,3]
[372128800,1752532242917,-4080.15,0.00022465,3]
[372128802,1752532242927,-460.0,0.00022465,3]
[372128804,1752532242936,-695.48,0.00022465,3]
[372128806,1752532242945,-302.68778321,0.00022465,3]
[372128808,1752532242955,-460.0,0.00022465,3]
[372128810,1752532242964,-2062.19,0.00022465,3]
[372128812,1752532242974,-694.43,0.00022465,3]
[372128814,1752532242983,-460.0,0.00022465,3]
[372128816,1752532242993,-551.7,0.00022465,3]
[372128818,1752532243002,-3466.55,0.00022465,3]
[372128820,1752532243012,-840.62,0.00022465,3]
[372128822,1752532243021,-460.0,0.00022465,3]
[372128824,1752532243031,-460.0,0.00022465,3]
[372128826,1752532243040,-476.17,0.00022465,3]
[372128828,1752532243050,-2617.13,0.00022465,3]
[372128830,1752532243059,-460.0,0.00022465,3]
[372128832,1752532243068,-460.0,0.00022465,3]
[372128834,1752532243077,-460.0,0.00022465,3]
[372128836,1752532243086,-460.0,0.00022465,3]
[372128838,1752532243095,-499.24,0.00022465,3]
[372128840,1752532243104,-460.0,0.00022465,3]
[372128842,1752532243114,-2264.69,0.00022465,3]
[372128844,1752532243123,-460.0,0.00022465,3]
[372128846,1752532243132,-460.0,0.00022465,3]
[372128848,1752532243141,-460.0,0.00022465,3]
[372128850,1752532243151,-460.0,0.00022465,3]
[372128852,1752532243160,-460.0,0.00022465,3]
[372128854,1752532243169,-703.76,0.00022465,3]
[372128856,1752532243178,-801.47,0.00022465,3]
[372128858,1752532243188,-537.34,0.00022465,3]
[372128860,1752532243197,-460.0,0.00022465,3]
[372128862,1752532243207,-460.0,0.00022465,3]
[372128864,1752532243216,-460.0,0.00022465,3]
[372128866,1752532243226,-5277.36,0.00022465,3]
[372128867,1752532243235,-460.0,0.00022465,3]
[372128868,1752532243244,-1054.77,0.00022465,3]
[372128869,1752532243253,-634.32,0.00022465,3]
[372128870,1752532243262,-593.07,0.00022465,3]
[372128871,1752532243271,-460.0,0.00022465,3]
[372128872,1752532243280,-460.0,0.00022465,3]
[372128873,1752532243289,-979.14,0.00022465,3]
[372128874,1752532243298,-585.2,0.00022465,3]
[372128875,1752532243307,-460.0,0.00022465,3]
[372128876,1752532243316,-460.0,0.00022465,3]
[372128877,1752532243325,-460.0,0.00022465,3]
[372128878,1752532243334,-504.12455157,0.00022473,2]
[372128879,1752532243343,-500.0,0.00022473,2]
[372128880,1752532243352,-500.0,0.00022473,2]
[372128881,1752532243361,-500.0,0.00022473,2]
[372128882,1752532243370,-500.0,0.00022473,2]
[372128883,1752532243379,-554.28493635,0.00022473,2]
[372128884,1752532243388,-500.0,0.00022473,2]
[372128885,1752532243398,-500.0,0.00022473,2]
[372128886,1752532243407,-500.0,0.00022473,2]
[372128888,1752532243416,-571.70043832,0.00022473,2]
[372128889,1752532243426,-500.0,0.00022473,2]
[372128890,1752532243436,-501.22281008,0.00022473,2]
[372128891,1752532243445,-500.63262251,0.00022473,2]
[372128893,1752532243455,-500.0,0.00022473,2]
[372128895,1752532243464,-500.0,0.00022473,2]
[372128897,1752532243474,-500.0,0.00022473,2]
[372128899,1752532243483,-158.03587871,0.00022473,2]
[372128901,1752532243493,-500.0,0.00022473,2]
[372128903,1752532243503,-500.0,0.00022473,2]
[372128904,1752532243511,-500.0,0.00022473,2]
[372128906,1752532243520,-179617.62483788,0.0002249,7]
[372128908,1752532243530,-3007.39,0.000225,7]
[372128910,1752532243539,-30110.13,0.000225,2]
[372128912,1752532243548,-500.0,0.00022521,2]
[372128914,1752532243558,-1000.0,0.00022521,2]
[372128916,1752532243567,-1000.0,0.00022521,2]
[372128918,1752532243576,-1000.0,0.00022521,2]
[372128920,1752532243586,-505.92,0.0002256,3]
[372128922,1752532243595,-1418.9076181,0.0002259,7]
[372128924,1752532243604,-472.332391,0.00022603,2]
[372128926,1752532243614,-505.92,0.0002266,7]
[372128928,1752532243625,-500.0,0.00022673,2]
[372128930,1752532243635,-165.0,0.00022708,2]
[372128932,1752532243645,-4459.10186293,0.00022708,2]
[372128934,1752532243656,-207.4,0.00022708,2]
[372128938,1752532243670,-151.0,0.00022708,2]
[372128940,1752532243679,-151.0,0.00022708,2]
[372128941,1752532243689,-151.0,0.00022708,2]
[372128944,1752532243698,-151.0,0.00022708,2]
[372128946,1752532243708,-151.0,0.00022708,2]
[372128948,1752532243718,-151.0,0.00022708,2]
[372128950,1752532243727,-151.0,0.00022708,2]
[372128952,1752532243736,-151.0,0.00022708,2]
[372128954,1752532243747,-151.0,0.00022708,2]
[372128956,1752532243757,-151.0,0.00022708,2]
[372128958,1752532243767,-151.0,0.00022708,2]
[372128959,1752532243776,-151.0,0.00022708,2]
[372128961,1752532243786,-151.0,0.00022708,2]
[372128963,1752532243795,-151.0,0.00022708,2]
[372128966,1752532243805,-151.0,0.00022708,2]
[372128968,1752532243815,-151.0,0.00022708,2]
[372128970,1752532243824,-151.0,0.00022708,2]
[372128972,1752532243834,-1418.9076181,0.00022728,7]
[372128975,1752532243843,-1705.78534178,0.00022728,2]
[372128977,1752532243853,-500.0,0.00022738,2]
[372128979,1752532243862,-647.42754762,0.00022738,2]
[372128981,1752532243871,-500.0,0.00022738,2]
[372128983,1752532243880,-500.0,0.00022738,2]
[372128985,1752532243890,-218.29508548,0.00022738,2]
[372128987,1752532243901,-500.0,0.00022738,2]
[372128989,1752532243910,-500.0,0.00022738,2]
[372128991,1752532243919,-599.64,0.00022739,3]
[372128993,1752532243928,-460.0,0.00022739,3]
[372128995,1752532243937,-460.0,0.00022739,3]
[372129007,1752532244037,-460.0,0.00022739,3]
[372129009,1752532244047,-460.0,0.00022739,3]
[372129011,1752532244056,-460.0,0.00022739,3]
[372129013,1752532244066,-484.26453525,0.00022739,3]
[372129015,1752532244075,-460.0,0.00022739,3]
[372129017,1752532244084,-460.0,0.00022739,3]
[372129019,1752532244093,-460.0,0.00022739,3]
[372129021,1752532244103,-460.0,0.00022739,3]
[372129023,1752532244112,-460.0,0.00022739,3]
[372129025,1752532244121,-460.0,0.00022739,3]
[372129027,1752532244131,-460.0,0.00022739,3]
[372129029,1752532244141,-460.0,0.00022739,3]
[372129032,1752532244151,-849.55,0.00022739,3]
[372129033,1752532244161,-460.0,0.00022739,3]
[372129035,1752532244170,-470.65,0.00022739,3]
[372129037,1752532244179,-460.0,0.00022739,3]
[372129040,1752532244189,-460.0,0.00022739,3]
[372129043,1752532244199,-4225.54,0.00022739,3]
[372129047,1752532244208,-460.0,0.00022739,3]
[372129049,1752532244218,-460.0,0.00022739,3]
[372129053,1752532244228,-460.0,0.00022739,3]
[372129055,1752532244238,-460.0,0.00022739,3]
[372129056,1752532244247,-460.0,0.00022739,3]
[372129058,1752532244257,-2685.53,0.00022739,3]
[372129061,1752532244266,-460.0,0.00022739,3]
[372129065,1752532244276,-460.0,0.00022739,3]
[372129067,1752532244287,-857.87,0.00022739,3]
[372129070,1752532244314,-460.0,0.00022739,3]
[372129072,1752532244328,-460.0,0.00022739,3]
[372129074,1752532244338,-460.0,0.00022739,3]
[372129076,1752532244347,-527.02,0.00022739,3]
[372129078,1752532244357,-460.0,0.00022739,3]
[372129080,1752532244366,-469.39,0.00022739,3]
[372129082,1752532244375,-460.0,0.00022739,3]
[372129084,1752532244384,-6892.34,0.00022739,3]
[372129086,1752532244393,-460.0,0.00022739,3]
[372129088,1752532244403,-460.0,0.00022739,3]
[372129090,1752532244412,-460.0,0.00022739,3]
[372129092,1752532244421,-460.0,0.00022739,3]
[372129094,1752532244431,-460.0,0.00022739,3]
[372129096,1752532244440,-460.0,0.00022739,3]
[372129098,1752532244449,-1071.76,0.00022739,3]
[372129100,1752532244459,-460.0,0.00022739,3]
[372129102,1752532244469,-460.0,0.00022739,3]
[372129104,1752532244478,-3108.77,0.00022739,3]
[372129106,1752532244488,-460.0,0.00022739,3]
[372129108,1752532244497,-460.0,0.00022739,3]
[372129110,1752532244506,-460.0,0.00022739,3]
[372129112,1752532244516,-460.0,0.00022739,3]
[372129114,1752532244525,-2811.79,0.00022739,3]
[372129116,1752532244534,-4740.55,0.00022739,3]
[372129118,1752532244544,-315.43,0.00022739,3]
[372129120,1752532244553,-460.0,0.00022739,3]
[372129122,1752532244563,-460.0,0.00022739,3]
[372129124,1752532244573,-460.0,0.00022739,3]
[372129126,1752532244582,-460.0,0.00022739,3]
[372129128,1752532244591,-517.79,0.00022739,3]
[372129130,1752532244601,-460.0,0.00022739,3]
[372129132,1752532244610,-587.69,0.00022739,3]
[372129134,1752532244620,-335.35717595,0.00022739,3]
[372129136,1752532244630,-1277.88,0.00022739,3]
[372129138,1752532244640,-1083.81,0.00022739,3]
[372129140,1752532244651,-460.0,0.00022739,3]
[372129141,1752532244660,-547.91,0.00022739,3]
[372129142,1752532244673,-561.49,0.00022739,3]
[372129143,1752532244682,-699.67,0.00022739,3]
[372129144,1752532244691,-460.0,0.00022739,3]
[372129145,1752532244701,-460.0,0.00022739,3]
[372129146,1752532244711,-780.27,0.00022739,3]
[372129148,1752532244720,-550.24,0.00022739,3]
[372129149,1752532244729,-480.78,0.00022739,3]
[372129150,1752532244740,-460.0,0.00022739,3]
[372129152,1752532244750,-460.0,0.00022739,3]
[372129154,1752532244759,-867.48,0.00022739,3]
[372129155,1752532244769,-814.73,0.00022739,3]
[372129156,1752532244778,-1633.31,0.00022739,3]
[372129157,1752532244788,-462.27,0.00022739,3]
[372129158,1752532244797,-4080.15,0.00022739,3]
[372129159,1752532244807,-695.48,0.00022739,3]
[372129160,1752532244816,-460.0,0.00022739,3]
[372129161,1752532244825,-2062.19,0.00022739,3]
[372129162,1752532244834,-694.43,0.00022739,3]
[372129163,1752532244844,-460.0,0.00022739,3]
[372129164,1752532244854,-551.7,0.00022739,3]
[372129165,1752532244862,-3466.55,0.00022739,3]
[372129166,1752532244871,-840.62,0.00022739,3]
[372129167,1752532244880,-556.43091798,0.00022739,3]
[372129168,1752532244890,-476.17,0.00022739,3]
[372129169,1752532244900,-2617.13,0.00022739,3]
[372129170,1752532244910,-460.0,0.00022739,3]
[372129171,1752532244919,-460.0,0.00022739,3]
[372129172,1752532244928,-460.0,0.00022739,3]
[372129173,1752532244937,-499.24,0.00022739,3]
[372129174,1752532244947,-460.0,0.00022739,3]
[372129175,1752532244956,-2264.69,0.00022739,3]
[372129176,1752532244966,-460.0,0.00022739,3]
[372129177,1752532244976,-460.0,0.00022739,3]
[372129178,1752532244986,-460.0,0.00022739,3]
[372129179,1752532244995,-460.0,0.00022739,3]
[372129180,1752532245004,-703.76,0.00022739,3]
[372129181,1752532245014,-801.47,0.00022739,3]
[372129182,1752532245023,-537.34,0.00022739,3]
[372129183,1752532245033,-460.0,0.00022739,3]
[372129184,1752532245042,-460.0,0.00022739,3]
[372129185,1752532245051,-5277.36,0.00022739,3]
[372129186,1752532245062,-460.0,0.00022739,3]
[372129187,1752532245072,-1054.77,0.00022739,3]
[372129188,1752532245081,-634.32,0.00022739,3]
[372129189,1752532245092,-593.07,0.00022739,3]
[372129190,1752532245102,-460.0,0.00022739,3]
[372129191,1752532245112,-460.0,0.00022739,3]
[372129192,1752532245121,-979.14,0.00022739,3]
[372129193,1752532245130,-585.2,0.00022739,3]
[372129194,1752532245140,-460.0,0.00022739,3]
[372129195,1752532245150,-460.0,0.00022739,3]
[372129196,1752532245160,-460.0,0.00022739,3]
[372129197,1752532245170,-505.92,0.0002276,4]
[372129198,1752532245180,-1038.9525527,0.0002277,2]
[372129199,1752532245190,-150.0,0.00022773,2]
[372129200,1752532245202,-505.92,0.0002286,3]
[372129201,1752532245211,-1418.9076181,0.00022866,8]
[372129202,1752532245220,-305.75666241,0.00022954,2]
[372129203,1752532245352,-500.0,0.00022738,2]
[372129204,1752532245363,-694.24333759,0.00022954,2]
[372129205,1752532245373,-505.92,0.0002296,3]
[372129206,1752532245383,-502.32431203,0.00022973,2]
[372129207,1752532245394,-500.0,0.00022973,2]
[372129208,1752532245403,-397.40443614,0.00022973,2]
[372129209,1752532245412,-290.17791424,0.00022973,2]
[372129217,1752532246517,-460.0,0.00021917,3]